fUSD/lending_fUSD_20260127
["ID","MTS","AMOUNT","RATE_DAILY","PERIOD"]
[403790735,1769544860519,-150.0,0.00050918,30]
[403790736,1769544860564,-1126.88563355,0.00050918,30]
[403790737,1769544860612,-150.0,0.00050919,30]
[403790738,1769544860658,-150.0,0.00050919,30]
[403790739,1769544860706,-734.87725778,0.00050969,120]
[403790740,1769544860760,-150.0,0.00050976,30]
[403790741,1769544860809,-150.0,0.00050989,30]
[403790742,1769544860857,-150.0,0.00050999,30]
[403790743,1769544860905,-1000.0,0.00050999,120]
[403790744,1769544860954,-1000.0,0.00051,120]
[403790745,1769544861015,-1000.0,0.00051,120]
[403790746,1769544861059,-150.0,0.00051,40]
[403790747,1769544861102,-500.0,0.00051,120]
[403790748,1769544861144,-150.0,0.00051012,30]
[403790749,1769544861186,-150.0,0.00051029,30]
[403790750,1769544861231,-150.0,0.00051029,30]
[403790751,1769544861275,-500.0,0.00051031,60]
[403790752,1769544861317,-500.0,0.00051031,60]
[403790753,1769544861358,-500.0,0.00051031,60]
[403790754,1769544861400,-150.0,0.00051061,30]
[403790755,1769544861443,-519.0,0.00051067,32]
[403790756,1769544861497,-150.0,0.00051079,30]
[403790757,1769544861543,-387.08332631,0.0005109,120]
[403790758,1769544861589,-150.0,0.00051119,30]
[403790759,1769544861633,-150.0,0.00051146,30]
[403790760,1769544861678,-150.0,0.0005117,30]
[403790761,1769544861723,-152.0,0.000512,120]
[403790762,1769544861768,-152.0,0.000512,120]
[403790763,1769544861815,-150.0,0.000512,30]
[403790764,1769544861862,-150.0,0.00051231,30]
[403790765,1769544861909,-150.0,0.00051238,30]
[403790766,1769544861958,-150.0,0.00051238,30]
[403790767,1769544862009,-150.0,0.00051289,30]
[403790768,1769544862066,-150.0,0.00051316,30]
[403790769,1769544862116,-150.0,0.00051358,30]
[403790770,1769544862165,-150.0,0.00051358,30]
[403790771,1769544862569,-150.0,0.00051358,30]
[403790772,1769544862617,-150.0,0.00051358,30]
[403790773,1769544862665,-150.0,0.00051398,30]
[403790774,1769544862712,-150.0,0.00051401,30]
[403790775,1769544862760,-150.0,0.00051411,30]
[403790776,1769544862810,-981.45,0.00051462,120]
[403790777,1769544862858,-150.0,0.00051478,30]
[403790778,1769544862904,-150.0,0.00051486,30]
[403790779,1769544862952,-5047.54,0.000515,120]
[403790780,1769544863002,-150.0,0.00051546,30]
[403790781,1769544863050,-150.0,0.00051558,30]
[403790782,1769544863098,-150.0,0.00051566,30]
[403790783,1769544863145,-150.0,0.00051571,30]
[403790784,1769544863189,-150.0,0.00051598,30]
[403790785,1769544863234,-150.0,0.00051622,30]
[403790786,1769544863283,-150.0,0.00051622,30]
[403790787,1769544863333,-150.0,0.00051655,30]
[403790788,1769544863383,-150.0,0.00051687,30]
[403790789,1769544863433,-150.0,0.00051687,30]
[403790790,1769544863480,-152.0,0.000517,120]
[403790791,1769544863528,-150.0,0.00051717,30]
[403790792,1769544863575,-150.0,0.00051717,30]
[403790793,1769544863623,-150.0,0.0005174,30]
[403790794,1769544863671,-253.885014,0.000518,73]
[403790795,1769544863719,-150.0,0.00051825,30]
[403790796,1769544863768,-150.0,0.00051832,30]
[403790797,1769544863816,-150.0,0.00051837,30]
[403790798,1769544863865,-150.0,0.00051843,30]
[403790799,1769544863915,-150.0,0.00051877,30]
[403790800,1769544863965,-152.0,0.000519,120]
[403790801,1769544864015,-150.0,0.0005191,30]
[403790802,1769544864070,-150.0,0.00051923,30]
[403790803,1769544864122,-433.45,0.00051943,120]
[403790804,1769544864172,-150.0,0.00051957,30]
[403790805,1769544864221,-1053.43558749,0.0005198,110]
[403790806,1769544864271,-150.84503078,0.0005199,38]
[403790807,1769544864319,-150.0,0.00051995,30]
[403790808,1769544864367,-500.0,0.00052,120]
[403790809,1769544864414,-544.0,0.00052,120]
[403790810,1769544864461,-2116.58372107,0.00052,120]
[403790811,1769544864509,-1000.0,0.00052,120]
[403790812,1769544864556,-200.0,0.00052,40]
[403790813,1769544864604,-3286.78865629,0.00052,120]
[403790814,1769544864651,-436.3125485,0.00052,120]
[403790815,1769544864700,-243.62523643,0.00052,120]
[403790816,1769544864748,-435.3707805,0.00052,120]
[403790817,1769544864795,-999.99999901,0.00052,120]
[403790818,1769544864843,-1291.94690281,0.00052,120]
[403790819,1769544864891,-1054.99922239,0.00052,120]
[403790820,1769544864940,-150.0,0.00052017,30]
[403790821,1769544864990,-150.0,0.00052017,30]
[403790822,1769544865042,-150.0,0.00052037,30]
[403790823,1769544865090,-150.0,0.00052043,30]
[403790824,1769544865138,-1000.0,0.00052054,120]
[403790825,1769544865184,-306.55888903,0.00052054,120]
[403790826,1769544865233,-150.0,0.00052076,30]
[403790827,1769544865281,-150.0,0.0005208,30]
[403790828,1769544865329,-150.0,0.00052121,30]
[403790829,1769544865375,-500.0,0.00052127,60]
[403790830,1769544865421,-500.0,0.00052127,60]
[403790831,1769544865467,-500.0,0.00052127,60]
[403790832,1769544865515,-150.0,0.00052165,30]
[403790833,1769544865562,-150.0,0.00052196,30]
[403790834,1769544865609,-150.0,0.00052196,30]
[403790835,1769544865657,-150.0,0.0005225,30]
[403790836,1769544865705,-150.0,0.00052254,30]
[403790837,1769544865752,-150.0,0.00052299,30]
[403790838,1769544865800,-152.0,0.000523,120]
[403790839,1769544865847,-734.87725778,0.00052313,120]
[403790840,1769544865894,-150.0,0.00052316,30]
[403790841,1769544865941,-2806.24,0.00052323,80]
[403790842,1769544865988,-150.0,0.00052335,30]
[403790843,1769544866037,-150.0,0.00052346,30]
[403790844,1769544866084,-150.0,0.00052346,30]
[403790845,1769544866131,-150.0,0.00052356,30]
[403790846,1769544866176,-150.0,0.00052398,30]
[403790847,1769544866220,-150.0,0.0005242,30]
[403790848,1769544866265,-150.0,0.00052436,30]
[403790849,1769544866309,-150.0,0.00052464,30]
[403790850,1769544866354,-150.0,0.00052505,30]
[403790851,1769544866400,-150.0,0.00052515,30]
[403790852,1769544866446,-150.0,0.00052555,30]
[403790853,1769544866492,-150.0,0.0005259,30]
[403790854,1769544866539,-152.0,0.000526,120]
[403790855,1769544866588,-981.45,0.00052628,120]
[403790856,1769544866633,-298.86903758,0.00052675,30]
[403790857,1769544866677,-254.65646772,0.00052675,30]
[403790858,1769544866721,-268.93356907,0.00052675,30]
[403790859,1769544866766,-231.2253925,0.00052675,30]
[403790860,1769544866812,-227.27549774,0.00052675,30]
[403790861,1769544866858,-194.17771829,0.00052675,30]
[403790862,1769544866904,-164.25754363,0.00052675,30]
[403790863,1769544866949,-166.1209017,0.00052675,30]
[403790864,1769544866995,-176.9334701,0.00052675,30]
[403790865,1769544867291,-163.9127161,0.00052675,30]
[403790866,1769544867336,-277.3965578,0.00052675,30]
[403790867,1769544867379,-170.92802227,0.00052675,30]
[403790868,1769544867423,-169.51992972,0.00052675,30]
[403790869,1769544867466,-288511.1376808,0.000527,120]
[403790870,1769544867512,-1102.0,0.000527,30]
[403790871,1769544867556,-1101.0,0.000527,30]
[403790872,1769544867603,-1102.0,0.000527,30]
[403790873,1769544867648,-150.0,0.00052765,120]
[403790874,1769544867693,-8240.29365427,0.000529,120]
[403790875,1769544867739,-152.0,0.000529,120]
[403790876,1769544867786,-1000.0,0.00052999,120]
[403790877,1769544867829,-1000.0,0.00053,120]
[403790878,1769544867872,-320.69148259,0.00053,120]
[403790879,1769544867917,-200.0,0.00053,120]
[403790880,1769544867964,-240000.0,0.00053,95]
[403790881,1769544868011,-510.02631177,0.00053,120]
[403790882,1769544868055,-4048.42921323,0.00053,120]
[403790883,1769544868099,-400.0,0.00053,120]
[403790884,1769544868143,-829.0,0.00053,120]
[403790885,1769544868184,-878.7505478,0.00053,120]
[403790886,1769544868225,-179.0,0.00053,120]
[403790887,1769544868264,-168.87114841,0.00053,120]
[403790888,1769544868303,-256.87549061,0.00053,120]
[403790889,1769544868340,-302.741885,0.000531,120]
[403790890,1769544868377,-500.0,0.00053223,60]
[403790891,1769544868415,-500.0,0.00053223,60]
[403790892,1769544868454,-500.0,0.00053223,60]
[403790893,1769544868492,-2945.0,0.0005326,76]
[403790894,1769544868530,-152.0,0.000533,120]
[403790895,1769544868570,-1068.28924445,0.00053424,120]
[403790896,1769544868609,-240000.0,0.000535,100]
[403790897,1769544868647,-240000.0,0.000535,105]
[403790898,1769544868686,-152.0,0.000535,120]
[403790899,1769544868730,-157.02,0.000536,120]
[403790900,1769544868774,-1382.46629962,0.00053656,120]
[403790901,1769544868819,-6735.379999,0.0005368,120]
[403790902,1769544868862,-377.99334956,0.0005369,60]
[403790903,1769544868906,-440.0,0.000537,30]
[403790904,1769544868950,-981.45,0.00053793,120]
[403790905,1769544869001,-250.0,0.00053799,85]
[403790906,1769544869044,-795.11625798,0.000538,120]
[403790907,1769544869087,-1000.0,0.000538,120]
[403790908,1769544869128,-1000.0,0.000538,120]
[403790909,1769544869167,-1000.0,0.000538,120]
[403790910,1769544869204,-3000.0,0.0005383,71]
[403790911,1769544869244,-187.78006524,0.00053838,81]
[403790912,1769544869286,-250.0,0.00053838,81]
[403790913,1769544869328,-150.0,0.00053843,120]
[403790914,1769544869374,-975459.71038087,0.000539,61]
[403790915,1769544869414,-67250.79145299,0.000539,120]
[403790916,1769544869455,-2211.64716754,0.000539,30]
[403790917,1769544869495,-20000.0,0.0005399,120]
[403790918,1769544869535,-1510.3447859,0.00053995,120]
[403790919,1769544869576,-362.30937653,0.00053999,120]
[403790920,1769544869616,-181.08010149,0.00053999,60]
[403790921,1769544869654,-250.0,0.00053999,60]
[403790922,1769544869693,-1000.0,0.00054,120]
[403790923,1769544869733,-389.86559661,0.00054,120]
[403790924,1769544869774,-240000.0,0.00054,110]
[403790925,1769544869817,-300.0,0.00054,120]
[403790926,1769544869861,-8559.39753049,0.00054,120]
[403790927,1769544869906,-220.0,0.00054,120]
[403790928,1769544869949,-190.91167788,0.00054,120]
[403790929,1769544869994,-12590.99638748,0.00054,30]
[403790930,1769544870037,-1823.22506926,0.00054,120]
[403790931,1769544870078,-842.0,0.00054,120]
[403790932,1769544870120,-261.49084083,0.00054,30]
[403790933,1769544870160,-23540.0,0.00054,60]
[403790934,1769544870198,-513.78,0.00054,120]
[403790935,1769544870237,-152.0,0.00054,120]
[403790936,1769544870275,-1107.18802614,0.00054,120]
[403790937,1769544870312,-166.9550318,0.00054,120]
[403790938,1769544870348,-38993.66357168,0.00054,120]
[403790939,1769544870385,-174.61919141,0.00054074,30]
[403790940,1769544870423,-250.0,0.00054074,30]
[403790941,1769544870460,-152.0,0.000541,120]
[403790942,1769544870499,-168.3888056,0.00054199,82]
[403790943,1769544870537,-250.0,0.00054199,82]
[403790944,1769544870576,-471.09,0.000542,120]
[403790945,1769544870615,-150.0,0.00054312,120]
[403790946,1769544870652,-500.0,0.00054319,60]
[403790947,1769544870690,-500.0,0.00054319,60]
[403790948,1769544870728,-500.0,0.00054319,60]
[403790949,1769544870766,-162.380719,0.0005432,90]
[403790950,1769544870803,-250.0,0.0005432,90]
[403790951,1769544870840,-156.587,0.00054322,35]
[403790952,1769544870878,-250.0,0.00054322,35]
[403790953,1769544870921,-2000.0,0.0005436,81]
[403790954,1769544870962,-4000.0,0.0005444,81]
[403790955,1769544871003,-151.0,0.00054499,120]
[403790956,1769544871047,-250.0,0.00054499,120]
[403790957,1769544871086,-240000.0,0.000545,115]
[403790958,1769544871416,-240000.0,0.000545,120]
[403790959,1769544871460,-961.0,0.000545,120]
[403790960,1769544871503,-961.0,0.000545,120]
[403790961,1769544871544,-961.0,0.000545,120]
[403790962,1769544871584,-961.0,0.000545,120]
[403790963,1769544871623,-961.0,0.000545,120]
[403790964,1769544871663,-961.0,0.000545,120]
[403790965,1769544871705,-961.0,0.000545,120]
[403790966,1769544871746,-961.0,0.000545,120]
[403790967,1769544871792,-480.73924356,0.000545,120]
[403790968,1769544871834,-240.36962178,0.000545,120]
[403790969,1769544871876,-863.81518912,0.000545,120]
[403790970,1769544871918,-431.90759456,0.000545,120]
[403790971,1769544871963,-471.09,0.000547,120]
[403790972,1769544872005,-152.0,0.000547,120]
[403790973,1769544872047,-152.0,0.000547,120]
[403790974,1769544872090,-2184029.8406978,0.0005474,120]
[403790975,1769544872131,-139444.48823128,0.00054741,120]
[403790976,1769544872175,-7033.41973366,0.00054765,120]
[403790977,1769544872217,-1180.87099273,0.00054767,120]
[403790978,1769544872258,-999.54044176,0.00054772,120]
[403790979,1769544872297,-3244.43193351,0.00054782,120]
[403790980,1769544872337,-1000.0,0.00054793,120]
[403790981,1769544872378,-800.0,0.00054795,36]
[403790982,1769544873470,400.0,0.00053699,120]
[403790983,1769544873541,151.0,0.000394,120]
[403790984,1769544873592,488.69,0.00045,30]
[403790985,1769544873662,151.0,0.00043156,120]
[403790986,1769544873716,488.69,0.0004725,30]
[403790987,1769544873766,151.0,0.00043367,120]
[403790988,1769544873848,151.0,0.00043367,120]
[403790989,1769544874289,488.69,0.00049613,30]
[403790990,1769544874373,488.69,0.00052093,30]
[403790991,1769544943951,519.0,0.00018,32]
[403790992,1769545024614,-15.57642688,0.00043367,120]
[403790993,1769545024665,-500.0,0.00043367,120]
[403790994,1769545024719,-530.42,0.00043367,120]
[403790995,1769545025114,-500.0,0.00043367,120]
[403790996,1769545025166,-500.0,0.00043367,120]
[403790997,1769545025218,-500.0,0.00043367,120]
[403790998,1769545025270,-500.0,0.00043367,120]
[403790999,1769545025320,-258.10269892,0.00043367,120]
[403791000,1769545025369,-500.0,0.00043367,120]
[403791001,1769545025418,-500.0,0.00043367,120]
[403791002,1769545025467,-500.0,0.00043367,120]
[403791003,1769545025516,-500.0,0.00043367,120]
[403791004,1769545025564,-500.0,0.00043367,120]
[403791005,1769545025612,-519.5,0.00043367,120]
[403791006,1769545025660,-500.0,0.00043367,120]
[403791007,1769545025709,-500.0,0.00043367,120]
[403791008,1769545025758,-608.92,0.00043367,120]
[403791009,1769545025809,-500.0,0.00043367,120]
[403791010,1769545025861,-500.0,0.00043367,120]
[403791011,1769545025911,-508.82988861,0.00043367,120]
[403791012,1769545025961,-500.0,0.00043367,120]
[403791013,1769545026018,-500.0,0.00043367,120]
[403791014,1769545026070,-500.0,0.00043367,120]
[403791015,1769545026121,-500.0,0.00043367,120]
[403791016,1769545026173,-500.0,0.00043367,120]
[403791017,1769545026222,-500.0,0.00043367,120]
[403791018,1769545026273,-500.0,0.00043367,120]
[403791019,1769545026322,-500.0,0.00043367,120]
[403791020,1769545026373,-500.0,0.00043367,120]
[403791021,1769545026425,-330.17,0.00043367,120]
[403791022,1769545026479,-587.37,0.00043367,120]
[403791023,1769545026531,-500.0,0.00043367,120]
[403791024,1769545026583,-500.0,0.00043367,120]
[403791025,1769545026635,-500.0,0.00043367,120]
[403791026,1769545026687,-500.0,0.00043367,120]
[403791027,1769545026738,-255.57,0.00043367,120]
[403791028,1769545026788,-500.0,0.00043367,120]
[403791029,1769545026837,-500.0,0.00043367,120]
[403791030,1769545026887,-585.64508991,0.00043367,120]
[403791031,1769545026940,-500.0,0.00043367,120]
[403791032,1769545026992,-611.52535652,0.00043367,120]
[403791033,1769545027049,-500.0,0.00043367,120]
[403791034,1769545027102,-500.0,0.00043367,120]
[403791035,1769545027158,-500.0,0.00043367,120]
[403791036,1769545027206,-500.0,0.00043367,120]
[403791037,1769545027254,-340.52176874,0.00043367,120]
[403791038,1769545027303,-500.0,0.00043367,120]
[403791039,1769545027356,-412.37363763,0.00043367,120]
[403791040,1769545027404,-500.0,0.00043367,120]
[403791041,1769545027454,-500.0,0.00043367,120]
[403791042,1769545027502,-537.58774728,0.00043367,120]
[403791043,1769545027550,-165.97,0.00043367,120]
[403791044,1769545027598,-583.36018839,0.00043367,120]
[403791045,1769545027648,-500.0,0.00043367,120]
[403791046,1769545027696,-500.0,0.00043367,120]
[403791047,1769545027745,-500.0,0.00043367,120]
[403791048,1769545027795,-500.0,0.00043367,120]
[403791049,1769545027847,-500.0,0.00043367,60]
[403791050,1769545027898,-500.0,0.00043367,120]
[403791051,1769545027951,-500.0,0.00043367,120]
[403791052,1769545028000,-500.0,0.00043367,120]
[403791053,1769545028052,-602.81,0.00043367,120]
[403791054,1769545028108,-500.0,0.00043367,120]
[403791055,1769545028163,-500.0,0.00043367,120]
[403791056,1769545028216,-500.0,0.00043367,120]
[403791057,1769545028269,-217.59,0.00043367,120]
[403791058,1769545028322,-500.0,0.00043367,120]
[403791059,1769545028377,-500.0,0.00043367,120]
[403791060,1769545028431,-500.0,0.00043367,120]
[403791061,1769545028486,-500.0,0.00043367,120]
[403791062,1769545028540,-500.0,0.00043367,120]
[403791063,1769545028594,-607.91,0.00043367,120]
[403791064,1769545028647,-500.0,0.00043367,120]
[403791065,1769545028701,-500.0,0.00043367,120]
[403791066,1769545028757,-500.0,0.00043367,120]
[403791067,1769545028811,-500.0,0.00043367,120]
[403791068,1769545028868,-524.8,0.00043367,120]
[403791069,1769545028925,-291.99,0.00043367,120]
[403791070,1769545028979,-500.0,0.00043367,120]
[403791071,1769545029033,-500.0,0.00043367,120]
[403791072,1769545029088,-500.0,0.00043367,120]
[403791073,1769545029142,-500.0,0.00043367,120]
[403791074,1769545029196,-500.0,0.00043367,120]
[403791075,1769545029250,-500.0,0.00043367,120]
[403791076,1769545029300,-157.82,0.00043367,120]
[403791077,1769545029350,-500.0,0.00043367,120]
[403791078,1769545029403,-500.0,0.00043367,120]
[403791079,1769545029458,-600.33,0.00043367,120]
[403791080,1769545029508,-587.55,0.00043367,120]
[403791081,1769545029557,-500.0,0.00043367,120]
[403791082,1769545029605,-500.0,0.00043367,120]
[403791083,1769545029657,-500.0,0.00043367,120]
[403791084,1769545029710,-623.98,0.00043367,120]
[403791085,1769545029761,-500.0,0.00043367,120]
[403791086,1769545030091,-536.56020339,0.00043367,120]
[403791087,1769545030141,-500.0,0.00043367,120]
[403791088,1769545030190,-500.0,0.00043367,120]
[403791089,1769545030239,-500.0,0.00043367,120]
[403791090,1769545030286,-500.0,0.00043367,120]
[403791091,1769545030337,-500.0,0.00043367,120]
[403791092,1769545030388,-155.85,0.00043367,120]
[403791093,1769545030436,-595.49845335,0.00043367,120]
[403791094,1769545030484,-500.0,0.00043367,120]
[403791095,1769545030535,-500.0,0.00043367,120]
[403791096,1769545030583,-500.0,0.00043367,120]
[403791097,1769545030634,-500.0,0.00043367,120]
[403791098,1769545030681,-500.0,0.00043367,120]
[403791099,1769545030729,-500.0,0.00043367,120]
[403791100,1769545030777,-500.0,0.00043367,120]
[403791101,1769545030825,-513.28,0.00043367,30]
[403791102,1769545030876,-500.0,0.00043367,120]
[403791103,1769545030926,-771.36,0.00043367,120]
[403791104,1769545030975,-500.0,0.00043367,120]
[403791105,1769545031027,-771.36,0.00043367,120]
[403791106,1769545031076,-190.16,0.00043367,120]
[403791107,1769545031127,-771.36,0.00043367,120]
[403791108,1769545031178,-771.36,0.00043367,120]
[403791109,1769545031229,-771.36,0.00043367,120]
[403791110,1769545031281,-771.36,0.00043367,120]
[403791111,1769545031329,-771.36,0.00043367,120]
[403791112,1769545031379,-771.36,0.00043367,120]
[403791113,1769545031428,-500.0,0.00043367,120]
[403791114,1769545031478,-771.36,0.00043367,120]
[403791115,1769545031531,-771.36,0.00043367,120]
[403791116,1769545031583,-500.0,0.00043367,120]
[403791117,1769545031633,-500.0,0.00043367,120]
[403791118,1769545031684,-771.36,0.00043367,120]
[403791119,1769545031737,-500.0,0.00043367,120]
[403791120,1769545031788,-771.36,0.00043367,120]
[403791121,1769545031840,-771.36,0.00043367,120]
[403791122,1769545031900,-500.0,0.00043367,120]
[403791123,1769545031952,-771.36,0.00043367,120]
[403791124,1769545032014,-614.190169,0.00043367,120]
[403791125,1769545032068,-771.36,0.00043367,120]
[403791126,1769545032118,-500.0,0.00043367,120]
[403791127,1769545032167,-771.36,0.00043367,120]
[403791128,1769545032218,-500.0,0.00043367,120]
[403791129,1769545032266,-500.0,0.00043367,120]
[403791130,1769545032313,-520.2,0.00043367,120]
[403791131,1769545032361,-771.36,0.00043367,120]
[403791132,1769545032408,-289.75,0.00043367,120]
[403791133,1769545032456,-771.36,0.00043367,120]
[403791134,1769545032502,-771.36,0.00043367,120]
[403791135,1769545032549,-771.36,0.00043367,120]
[403791136,1769545032597,-771.36,0.00043367,120]
[403791137,1769545032645,-771.36,0.00043367,120]
[403791138,1769545032692,-500.0,0.00043367,120]
[403791139,1769545032741,-771.36,0.00043367,120]
[403791140,1769545032796,-500.0,0.00043367,120]
[403791141,1769545032847,-771.58,0.00043367,120]
[403791142,1769545032898,-1404.37,0.00043367,120]
[403791143,1769545032948,-500.0,0.00043367,120]
[403791144,1769545032998,-1404.37,0.00043367,120]
[403791145,1769545033045,-500.0,0.00043367,120]
[403791146,1769545033098,-505.32,0.00043367,120]
[403791147,1769545033150,-1404.37,0.00043367,120]
[403791148,1769545033239,-500.0,0.00043367,120]
[403791149,1769545033319,-500.0,0.00043367,120]
[403791151,1769545033403,-1404.37,0.00043367,120]
[403791152,1769545033481,-500.0,0.00043367,120]
[403791153,1769545033566,-189.93,0.00043367,120]
[403791154,1769545033636,-1404.37,0.00043367,120]
[403791155,1769545033712,-500.0,0.00043367,120]
[403791156,1769545033818,-1404.37,0.00043367,120]
[403791157,1769545033910,-500.0,0.00043367,120]
[403791158,1769545033994,-500.0,0.00043367,120]
[403791159,1769545034075,-500.0,0.00043367,120]
[403791160,1769545034154,-1404.37,0.00043367,120]
[403791161,1769545034228,-500.0,0.00043367,120]
[403791162,1769545034301,-500.0,0.00043367,120]
[403791163,1769545034380,-1404.37,0.00043367,120]
[403791164,1769545034456,-500.0,0.00043367,120]
[403791165,1769545034529,-500.0,0.00043367,120]
[403791166,1769545034599,-1404.37,0.00043367,120]
[403791167,1769545034669,-500.0,0.00043367,120]
[403791168,1769545034736,-500.0,0.00043367,120]
[403791169,1769545034803,-1404.37,0.00043367,120]
[403791170,1769545034873,-1404.37,0.00043367,120]
[403791171,1769545034946,-1404.37,0.00043367,120]
[403791172,1769545035013,-1404.37,0.00043367,120]
[403791173,1769545035082,-500.0,0.00043367,120]
[403791174,1769545035149,-1404.37,0.00043367,120]
[403791175,1769545035218,-500.0,0.00043367,30]
[403791176,1769545035289,-1404.37,0.00043367,120]
[403791177,1769545035357,-500.0,0.00043367,120]
[403791178,1769545035433,-1404.37,0.00043367,120]
[403791179,1769545035509,-500.0,0.00043367,120]
[403791180,1769545035599,-1404.37,0.00043367,120]
[403791181,1769545035694,-637.94,0.00043367,120]
[403791182,1769545035774,-500.0,0.00043367,120]
[403791183,1769545035848,-1404.37,0.00043367,120]
[403791184,1769545035920,-1404.37,0.00043367,120]
[403791185,1769545035995,-189.24,0.00043367,120]
[403791186,1769545036069,-1404.37,0.00043367,120]
[403791187,1769545036147,-500.0,0.00043367,120]
[403791188,1769545036222,-500.0,0.00043367,120]
[403791189,1769545036293,-1404.37,0.00043367,120]
[403791190,1769545036368,-500.0,0.00043367,120]
[403791191,1769545036438,-500.0,0.00043367,120]
[403791192,1769545036511,-500.0,0.00043367,120]
[403791193,1769545036586,-1404.37,0.00043367,120]
[403791194,1769545036667,-1404.37,0.00043367,120]
[403791195,1769545036742,-1404.57,0.00043367,120]
[403791196,1769545036815,-500.0,0.00043367,120]
[403791197,1769545036884,-520.81168685,0.00043367,120]
[403791198,1769545036953,-569.86,0.00043367,120]
[403791199,1769545037021,-500.0,0.00043367,120]
[403791200,1769545037088,-500.0,0.00043367,120]
[403791201,1769545037163,-500.0,0.00043367,120]
[403791202,1769545037239,-579.86657329,0.00043367,120]
[403791203,1769545037299,-500.0,0.00043367,120]
[403791204,1769545037350,-500.0,0.00043367,120]
[403791205,1769545037402,-500.0,0.00043367,120]
[403791206,1769545037451,-500.0,0.00043367,120]
[403791207,1769545037502,-500.0,0.00043367,120]
[403791208,1769545037555,-500.0,0.00043367,120]
[403791209,1769545037607,-451.51,0.00043367,120]
[403791210,1769545037658,-594.16748692,0.00043367,120]
[403791211,1769545037707,-340.73269812,0.00043367,120]
[403791212,1769545038440,-598.14082836,0.00043367,120]
[403791213,1769545038493,-500.0,0.00043367,120]
[403791214,1769545038542,-179.48,0.00043367,120]
[403791215,1769545038592,-600.72,0.00043367,120]
[403791216,1769545038645,-447.00787051,0.00043367,120]
[403791217,1769545038694,-500.0,0.00043367,120]
[403791218,1769545038744,-500.0,0.00043367,120]
[403791219,1769545038795,-500.0,0.00043367,120]
[403791220,1769545038845,-595.1,0.00043367,120]
[403791221,1769545038897,-500.0,0.00043367,120]
[403791222,1769545038949,-500.0,0.00043367,120]
[403791223,1769545039001,-500.0,0.00043367,120]
[403791224,1769545039052,-296.02440471,0.00043367,120]
[403791225,1769545039107,-500.0,0.00043367,120]
[403791226,1769545039159,-500.0,0.00043367,120]
[403791227,1769545039209,-500.000001,0.00043367,120]
[403791228,1769545039261,-500.0,0.00043367,120]
[403791229,1769545039312,-500.0,0.00043367,120]
[403791230,1769545039361,-500.0,0.00043367,120]
[403791231,1769545039415,-500.0,0.00043367,120]
[403791232,1769545039464,-576.54,0.00043367,120]
[403791233,1769545039518,-205.95,0.00043367,120]
[403791234,1769545039581,-500.0,0.00043367,120]
[403791235,1769545039632,-500.0,0.00043367,120]